Workbook

Sheet نشاط المبيعات الأسبوعية
B1: نشاط المبيعات الأسبوعية | I1: البائع | J1: الاسم | L1: نهاية الأسبوع | M1: التاريخ
I3: الموقع | J3: الموقع | L3: تاريخ اليوم | M3: التاريخ
B5: الأيام | C5: داخل مكتب المبيعات | D5: خارج المكتب | E5: زيارات داخل المكتب | F5: المكالمات الخارجية | G5: المكالمات الهاتفية | H5: الحساب الجديد الهاتف | I5: غرف النزيل | J5: الأطعمة والمشروبات | K5: إيجار غرفة الاجتماعات | L5: غير ذلك* | M5: الإجمالي
B6: الاثنين | C6: ر.س.‏ 14.00 | D6: ر.س.‏ 23.00 | E6: ر.س.‏ 4.00 | F6: ر.س.‏ 45.00 | G6: ر.س.‏ 22.00 | H6: ر.س.‏ 2.00 | I6: ر.س.‏ 100.00 | J6: ر.س.‏ 0.00 | K6: ر.س.‏ 0.00 | L6: ر.س.‏ 0.00 | M6: =SUM(النشاط[[#This Row],[داخل مكتب المبيعات]:[غير ذلك*]]) -> ر.س.‏ 210.00
B7: الثلاثاء | C7: ر.س.‏ 23.00 | D7: ر.س.‏ 76.00 | E7: ر.س.‏ 10.00 | F7: ر.س.‏ 50.00 | G7: ر.س.‏ 54.00 | H7: ر.س.‏ 45.00 | I7: ر.س.‏ 80.00 | J7: ر.س.‏ 0.00 | K7: ر.س.‏ 0.00 | L7: ر.س.‏ 0.00 | M7: =SUM(النشاط[[#This Row],[داخل مكتب المبيعات]:[غير ذلك*]]) -> ر.س.‏ 338.00
B8: الأربعاء | C8: ر.س.‏ 4.00 | D8: ر.س.‏ 130.00 | E8: ر.س.‏ 11.00 | F8: ر.س.‏ 33.00 | G8: ر.س.‏ 67.00 | H8: ر.س.‏ 65.00 | I8: ر.س.‏ 400.00 | J8: ر.س.‏ 0.00 | K8: ر.س.‏ 0.00 | L8: ر.س.‏ 0.00 | M8: =SUM(النشاط[[#This Row],[داخل مكتب المبيعات]:[غير ذلك*]]) -> ر.س.‏ 710.00
B9: الخميس | C9: ر.س.‏ 102.00 | D9: ر.س.‏ 40.00 | E9: ر.س.‏ 18.00 | F9: ر.س.‏ 0.00 | G9: ر.س.‏ 86.00 | H9: ر.س.‏ 82.00 | I9: ر.س.‏ 97.00 | J9: ر.س.‏ 0.00 | K9: ر.س.‏ 0.00 | L9: ر.س.‏ 0.00 | M9: =SUM(النشاط[[#This Row],[داخل مكتب المبيعات]:[غير ذلك*]]) -> ر.س.‏ 425.00
B10: الجمعة | C10: ر.س.‏ 33.00 | D10: ر.س.‏ 55.00 | E10: ر.س.‏ 22.00 | F10: ر.س.‏ 49.00 | G10: ر.س.‏ 143.00 | H10: ر.س.‏ 26.00 | I10: ر.س.‏ 50.00 | J10: ر.س.‏ 0.00 | K10: ر.س.‏ 0.00 | L10: ر.س.‏ 0.00 | M10: =SUM(النشاط[[#This Row],[داخل مكتب المبيعات]:[غير ذلك*]]) -> ر.س.‏ 378.00
B11: السبت | C11: ر.س.‏ 0.00 | D11: ر.س.‏ 0.00 | E11: ر.س.‏ 0.00 | F11: ر.س.‏ 0.00 | G11: ر.س.‏ 0.00 | H11: ر.س.‏ 0.00 | I11: ر.س.‏ 0.00 | J11: ر.س.‏ 0.00 | K11: ر.س.‏ 0.00 | L11: ر.س.‏ 0.00 | M11: =SUM(النشاط[[#This Row],[داخل مكتب المبيعات]:[غير ذلك*]]) -> ر.س.‏ 0.00
B12: الأحد | C12: ر.س.‏ 0.00 | D12: ر.س.‏ 0.00 | E12: ر.س.‏ 0.00 | F12: ر.س.‏ 0.00 | G12: ر.س.‏ 0.00 | H12: ر.س.‏ 0.00 | I12: ر.س.‏ 0.00 | J12: ر.س.‏ 0.00 | K12: ر.س.‏ 0.00 | L12: ر.س.‏ 0.00 | M12: =SUM(النشاط[[#This Row],[داخل مكتب المبيعات]:[غير ذلك*]]) -> ر.س.‏ 0.00
B13: الإجماليات | C13: =SUBTOTAL(109,النشاط[داخل مكتب المبيعات]) -> ر.س.‏ 176.00 | D13: =SUBTOTAL(109,النشاط[خارج المكتب]) -> ر.س.‏ 324.00 | E13: =SUBTOTAL(109,النشاط[زيارات داخل المكتب]) -> ر.س.‏ 65.00 | F13: =SUBTOTAL(109,النشاط[المكالمات الخارجية]) -> ر.س.‏ 177.00 | G13: =SUBTOTAL(109,النشاط[المكالمات الهاتفية]) -> ر.س.‏ 372.00 | H13: =SUBTOTAL(109,النشاط[الحساب الجديد الهاتف]) -> ر.س.‏ 220.00 | I13: =SUBTOTAL(109,النشاط[غرف النزيل]) -> ر.س.‏ 727.00 | J13: =SUBTOTAL(109,النشاط[الأطعمة والمشروبات]) -> ر.س.‏ 0.00 | K13: =SUBTOTAL(109,النشاط[إيجار غرفة الاجتماعات]) -> ر.س.‏ 0.00 | L13: =SUBTOTAL(109,النشاط[غير ذلك*]) -> ر.س.‏ 0.00 | M13: =SUBTOTAL(109,النشاط[الإجمالي]) -> ر.س.‏ 2,061.00
B15: الهدف | C15: ر.س.‏ 200.00 | D15: ر.س.‏ 400.00 | E15: ر.س.‏ 300.00 | F15: ر.س.‏ 65.00 | G15: ر.س.‏ 500.00 | H15: ر.س.‏ 300.00 | I15: ر.س.‏ 400.00 | J15: ر.س.‏ 600.00 | K15: ر.س.‏ 300.00 | L15: ر.س.‏ 300.00 | M15: =SUM(C15:L15) -> ر.س.‏ 3,365.00
B16: نسبة الفرق | C16: =SUM(النشاط[[#Totals],[داخل مكتب المبيعات]]-C15) -> -ر.س.‏ 24.00 | D16: =SUM(النشاط[[#Totals],[خارج المكتب]]-D15) -> -ر.س.‏ 76.00 | E16: =SUM(النشاط[[#Totals],[زيارات داخل المكتب]]-E15) -> -ر.س.‏ 235.00 | F16: =SUM(النشاط[[#Totals],[المكالمات الخارجية]]-F15) -> ر.س.‏ 112.00 | G16: =SUM(النشاط[[#Totals],[المكالمات الهاتفية]]-G15) -> -ر.س.‏ 128.00 | H16: =SUM(النشاط[[#Totals],[الحساب الجديد الهاتف]]-H15) -> -ر.س.‏ 80.00 | I16: =SUM(النشاط[[#Totals],[غرف النزيل]]-I15) -> ر.س.‏ 327.00 | J16: =SUM(النشاط[[#Totals],[الأطعمة والمشروبات]]-J15) -> -ر.س.‏ 600.00 | K16: =SUM(النشاط[[#Totals],[إيجار غرفة الاجتماعات]]-K15) -> -ر.س.‏ 300.00 | L16: =SUM(النشاط[[#Totals],[غير ذلك*]]-L15) -> -ر.س.‏ 300.00 | M16: =SUM(C16:L16) -> -ر.س.‏ 1,304.00
B18: * شرح
B20: الموافقة
